fUSD/lending_fUSD_20240515
["ID","MTS","AMOUNT","RATE_DAILY","PERIOD"]
[327066027,1715775049225,-890.794692,0.00011879,2]
[327066028,1715775049235,-890.794692,0.00011879,2]
[327066029,1715775049244,-890.794692,0.00011879,2]
[327066030,1715775049254,-890.794692,0.00011879,2]
[327066031,1715775049263,-151.0,0.00011879,2]
[327066032,1715775049273,-151.0,0.00011879,2]
[327066033,1715775049283,-151.0,0.00011879,2]
[327066034,1715775049293,-151.0,0.00011879,2]
[327066035,1715775049303,-151.0,0.00011879,2]
[327066036,1715775049313,-151.0,0.00011879,2]
[327066037,1715775049324,-151.0,0.00011879,2]
[327066038,1715775049334,-151.0,0.00011879,2]
[327066039,1715775049345,-100.6639161,0.00011879,2]
[327066040,1715775049580,-500.0,0.0001178,2]
[327066041,1715775049590,-151.0,0.00011836,2]
[327066042,1715775049600,-50.3360839,0.00011879,2]
[327066043,1715775049609,-151.0,0.00011879,2]
[327066044,1715775049618,-500.0,0.00011879,2]
[327066045,1715775049627,-500.0,0.00011879,2]
[327066046,1715775049637,-500.0,0.00011879,2]
[327066047,1715775049646,-531.01,0.00011879,2]
[327066048,1715775049656,-500.0,0.00011879,2]
[327066049,1715775049666,-500.0,0.00011879,2]
[327066050,1715775049675,-500.0,0.00011879,2]
[327066051,1715775049685,-500.0,0.00011879,2]
[327066052,1715775049695,-500.0,0.00011879,2]
[327066053,1715775049705,-500.0,0.00011879,2]
[327066054,1715775049716,-207.65391609,0.00011879,2]
[327066055,1715775049729,-292.34608391,0.00011879,2]
[327066056,1715775049739,-333.38391609,0.00011879,2]
[327066061,1715775108482,171.94189828,0.000235,120]
[327066075,1715775273590,193.57,8.917e-05,2]
[327066076,1715775425904,184.57,0.00010411,2]
[327066081,1715775947579,183.89,8.793e-05,2]
[327066096,1715776164166,-690.02157532,0.00010608,2]
[327066101,1715776213837,-643.1326905,0.00010606,2]
[327066102,1715776213861,-26.8673095,0.00010607,2]
[327066112,1715776232061,-317.39981199,0.00010607,2]
[327066113,1715776232071,-542.97842468,0.00010608,2]
[327066114,1715776232081,-661.0,0.0001061,2]
[327066115,1715776232090,-250.0,0.00010612,2]
[327066116,1715776232100,-176.87,0.00010678,2]
[327066117,1715776232109,-250.0,0.00010683,2]
[327066118,1715776232119,-482.21,0.00010684,2]
[327066119,1715776232128,-200.0,0.00010745,2]
[327066120,1715776232138,-176.93,0.00010799,2]
[327066121,1715776232147,-942.61176333,0.00010799,2]
[327066190,1715776238147,-396.41390711,0.00010799,2]
[327066191,1715776238160,-457.97432956,0.00010799,2]
[327066192,1715776238170,-193.32862244,0.00010959,2]
[327066193,1715776238184,-1806.67137756,0.00010959,2]
[327066194,1715776238193,-4000.0,0.00010959,3]
[327066195,1715776238209,-200.0,0.00011,2]
[327066196,1715776238219,-183.89,0.00011057,2]
[327066197,1715776238229,-500.0,0.000112,4]
[327066198,1715776238240,-9670.58801866,0.00011233,2]
[327066199,1715776238657,-3396.04284698,0.00011233,2]
[327066200,1715776238669,-86646.86937668,0.00011233,2]
[327066201,1715776238678,-10000.0,0.00011234,2]
[327066202,1715776238688,-1100.0,0.000113,4]
[327066203,1715776238698,-1700.0,0.000114,4]
[327066204,1715776238721,-2300.0,0.000115,4]
[327066205,1715776238731,-2900.0,0.000116,4]
[327066206,1715776238740,-1023.01409433,0.00011641,2]
[327066207,1715776238751,-1085.43593491,0.00011641,2]
[327066209,1715776238766,-6754.5911,0.0001167,2]
[327066211,1715776238775,-1000.0,0.0001167,2]
[327066212,1715776238784,-1260.0,0.00011678,2]
[327066213,1715776238795,-519.523,0.00011678,2]
[327066214,1715776238806,-1790.0,0.00011678,2]
[327066215,1715776238815,-823.753,0.00011678,2]
[327066216,1715776238825,-369.31963877,0.0001168,2]
[327066217,1715776238835,-500.0,0.000117,4]
[327066218,1715776238844,-369.31963874,0.00011705,2]
[327066219,1715776238854,-369.31963874,0.0001173,2]
[327066220,1715776238864,-369.31963874,0.00011755,2]
[327066221,1715776238874,-10783.70342133,0.00011759,2]
[327066222,1715776238884,-3000.0,0.0001176,2]
[327066224,1715776238893,-154.11,0.0001176,2]
[327066226,1715776238903,-167365.6625,0.0001177,2]
[327066227,1715776238913,-71.09843178,0.00011778,2]
[327066229,1715776238925,-226.12076173,0.00011778,2]
[327066231,1715776238935,-247.51947701,0.00011779,2]
[327066295,1715776239966,-9752.48052299,0.00011779,2]
[327066296,1715776239976,-500.0,0.0001178,2]
[327066297,1715776239986,-516.51517361,0.0001178,2]
[327066298,1715776239996,-1000.0,0.0001178,2]
[327066299,1715776240006,-754.58,0.0001178,2]
[327066300,1715776240015,-384.89,0.0001178,2]
[327066301,1715776240025,-500.0,0.0001178,2]
[327066302,1715776240034,-406.98,0.0001178,2]
[327066303,1715776240045,-553.6,0.0001178,2]
[327066304,1715776240055,-209.85,0.0001178,2]
[327066305,1715776240065,-376.68,0.0001178,2]
[327066306,1715776240075,-500.0,0.0001178,2]
[327066307,1715776240084,-500.0,0.0001178,2]
[327066308,1715776240095,-287.94,0.0001178,2]
[327066309,1715776240104,-177.68151497,0.0001178,2]
[327066310,1715776240114,-153.8,0.0001178,2]
[327066311,1715776240124,-387.941594,0.0001178,2]
[327066312,1715776240135,-338.22,0.0001178,2]
[327066313,1715776240145,-500.0,0.0001178,2]
[327066314,1715776240154,-503.39,0.0001178,2]
[327066315,1715776240164,-524.05945036,0.0001178,2]
[327066316,1715776240175,-500.0,0.0001178,2]
[327066317,1715776240185,-522.04630364,0.0001178,2]
[327066318,1715776240195,-500.0,0.0001178,2]
[327066319,1715776240211,-304.73,0.0001178,2]
[327066320,1715776240220,-500.0,0.0001178,2]
[327066321,1715776240230,-500.0,0.0001178,2]
[327066322,1715776240240,-509.4,0.0001178,2]
[327066323,1715776240250,-613.18,0.0001178,2]
[327066324,1715776240259,-559.99,0.0001178,2]
[327066325,1715776240270,-508.40300489,0.0001178,2]
[327066326,1715776240281,-500.0,0.0001178,2]
[327066327,1715776240291,-472.88,0.0001178,2]
[327066328,1715776240301,-400.99,0.0001178,2]
[327066329,1715776240311,-500.0,0.0001178,2]
[327066330,1715776240321,-363.81,0.0001178,2]
[327066331,1715776240332,-257.0,0.0001178,2]
[327066332,1715776240342,-500.0,0.0001178,2]
[327066333,1715776240352,-500.0,0.0001178,2]
[327066334,1715776240362,-450.78,0.0001178,2]
[327066335,1715776240371,-518.22110346,0.0001178,2]
[327066336,1715776240382,-230.49,0.0001178,2]
[327066337,1715776240392,-336.53,0.0001178,2]
[327066338,1715776240402,-23415.10884308,0.0001178,2]
[327066339,1715776240412,-243.9766075,0.0001178,2]
[327066340,1715776240423,-583.87,0.0001178,2]
[327066341,1715776240433,-304.77,0.0001178,2]
[327066342,1715776240443,-589.18,0.0001178,2]
[327066343,1715776240458,-172.03572245,0.0001178,2]
[327066344,1715776240468,-500.0,0.0001178,2]
[327066345,1715776240478,-500.0,0.0001178,2]
[327066346,1715776240489,-500.0,0.0001178,2]
[327066347,1715776240499,-183.93,0.0001178,2]
[327066348,1715776240509,-500.0,0.0001178,2]
[327066349,1715776240519,-500.0,0.0001178,2]
[327066350,1715776240530,-500.0,0.0001178,2]
[327066352,1715776240540,-382.88,0.0001178,2]
[327066354,1715776240551,-151.0,0.0001178,2]
[327066356,1715776240560,-500.0,0.0001178,2]
[327066358,1715776240570,-152.994922,0.0001178,2]
[327066360,1715776240580,-151.0,0.0001178,2]
[327066362,1715776240589,-500.0,0.0001178,2]
[327066364,1715776240599,-151.0,0.0001178,2]
[327066366,1715776240609,-151.0,0.0001178,2]
[327066368,1715776240619,-500.0,0.0001178,2]
[327066370,1715776240629,-202.55,0.0001178,2]
[327066372,1715776240639,-513.07943756,0.0001178,2]
[327066374,1715776240649,-500.0,0.0001178,2]
[327066376,1715776240659,-500.0,0.0001178,2]
[327066378,1715776240669,-500.0,0.0001178,2]
[327066380,1715776240680,-500.0,0.0001178,2]
[327066382,1715776240690,-500.0,0.0001178,2]
[327066385,1715776240710,-500.0,0.0001178,2]
[327066387,1715776240728,-500.0,0.0001178,2]
[327066389,1715776240738,-181.2653738,0.0001178,2]
[327066391,1715776240747,-151.0,0.0001178,2]
[327066393,1715776240759,-625.06,0.0001178,2]
[327066395,1715776240770,-151.0,0.0001178,2]
[327066397,1715776240780,-573.66,0.0001178,2]
[327066399,1715776240791,-634.32,0.0001178,2]
[327066401,1715776240801,-500.0,0.0001178,2]
[327066403,1715776240811,-500.0,0.0001178,2]
[327066405,1715776240821,-500.0,0.0001178,2]
[327066407,1715776240831,-151.0,0.0001178,2]
[327066409,1715776240840,-151.0,0.0001178,2]
[327066411,1715776240851,-160.64,0.0001178,2]
[327066413,1715776240862,-500.0,0.0001178,2]
[327066415,1715776240872,-500.0,0.0001178,2]
[327066417,1715776240881,-500.0,0.0001178,2]
[327066419,1715776240891,-453.41,0.0001178,2]
[327066421,1715776240901,-500.0,0.0001178,2]
[327066424,1715776240911,-500.0,0.0001178,2]
[327066426,1715776240920,-278.22124218,0.0001178,2]
[327066428,1715776240930,-500.0,0.0001178,2]
[327066430,1715776240940,-500.0,0.0001178,2]
[327066432,1715776240950,-313.38,0.0001178,2]
[327066433,1715776240965,-500.0,0.0001178,2]
[327066436,1715776240975,-500.0,0.0001178,2]
[327066438,1715776240984,-367.19,0.0001178,2]
[327066440,1715776240994,-500.0,0.0001178,2]
[327066442,1715776241005,-525.95226887,0.0001178,2]
[327066444,1715776241015,-322.31,0.0001178,2]
[327066446,1715776241026,-500.0,0.0001178,2]
[327066448,1715776241037,-500.0,0.0001178,2]
[327066450,1715776241048,-500.0,0.0001178,2]
[327066452,1715776241058,-500.0,0.0001178,2]
[327066454,1715776241068,-529.63444132,0.0001178,2]
[327066456,1715776241078,-450.21,0.0001178,2]
[327066458,1715776241088,-151.0,0.0001178,2]
[327066459,1715776241098,-150.0,0.0001178,2]
[327066461,1715776241107,-151.0,0.0001178,2]
[327066463,1715776241117,-525.84136009,0.0001178,2]
[327066465,1715776241128,-521.04340824,0.0001178,2]
[327066467,1715776241138,-547.84,0.0001178,2]
[327066469,1715776241148,-334.19,0.0001178,2]
[327066471,1715776241159,-500.0,0.0001178,2]
[327066472,1715776241169,-500.0,0.0001178,2]
[327066473,1715776241179,-622.45486019,0.0001178,2]
[327066474,1715776241190,-152.10606,0.0001178,2]
[327066475,1715776241200,-524.03839949,0.0001178,2]
[327066476,1715776241217,-151.0,0.0001178,2]
[327066477,1715776241227,-231.23377617,0.0001178,2]
[327066478,1715776241236,-519.63891506,0.0001178,2]
[327066479,1715776241246,-506.21,0.0001178,2]
[327066480,1715776241255,-196.82640071,0.0001178,2]
[327066481,1715776241264,-500.0,0.0001178,2]
[327066482,1715776241274,-473.58,0.0001178,2]
[327066483,1715776241284,-500.0,0.0001178,2]
[327066484,1715776241294,-296.48075596,0.0001178,2]
[327066485,1715776241304,-503.46,0.0001178,2]
[327066486,1715776241314,-347.83,0.0001178,2]
[327066487,1715776241323,-520.56881247,0.0001178,2]
[327066488,1715776241333,-500.0,0.0001178,2]
[327066489,1715776241343,-481.40611128,0.0001178,2]
[327066490,1715776241353,-369.31963874,0.0001178,2]
[327066491,1715776241362,-500.0,0.0001178,2]
[327066492,1715776241371,-500.0,0.0001178,2]
[327066493,1715776241381,-500.0,0.0001178,2]
[327066494,1715776241391,-500.0,0.0001178,2]
[327066495,1715776241400,-500.0,0.0001178,2]
[327066496,1715776241410,-500.0,0.0001178,2]
[327066497,1715776241419,-500.0,0.0001178,2]
[327066498,1715776241429,-500.0,0.0001178,2]
[327066499,1715776241438,-301.12,0.0001178,2]
[327066500,1715776241449,-155.0,0.0001178,2]
[327066501,1715776241465,-619.89,0.0001178,2]
[327066502,1715776241474,-178.2,0.0001178,2]
[327066503,1715776241484,-500.0,0.0001178,2]
[327066504,1715776241494,-500.0,0.0001178,2]
[327066505,1715776241504,-500.0,0.0001178,2]
[327066506,1715776241513,-500.0,0.0001178,2]
[327066507,1715776241523,-530.99660369,0.0001178,2]
[327066508,1715776241532,-525.09900678,0.0001178,2]
[327066509,1715776241542,-151.0,0.0001178,2]
[327066510,1715776241551,-500.0,0.0001178,2]
[327066511,1715776241560,-500.0,0.0001178,2]
[327066512,1715776241570,-500.0,0.0001178,2]
[327066513,1715776241579,-151.0,0.0001178,2]
[327066514,1715776241589,-500.0,0.0001178,2]
[327066515,1715776241599,-500.0,0.0001178,2]
[327066516,1715776241610,-288.14,0.0001178,2]
[327066517,1715776241621,-152.918596,0.0001178,2]
[327066518,1715776241630,-500.0,0.0001178,2]
[327066519,1715776241640,-500.0,0.0001178,2]
[327066520,1715776241650,-500.0,0.0001178,2]
[327066521,1715776241659,-500.0,0.0001178,2]
[327066523,1715776241669,-500.0,0.0001178,2]
[327066525,1715776241679,-500.0,0.0001178,2]
[327066527,1715776241690,-500.0,0.0001178,2]
[327066529,1715776241700,-500.0,0.0001178,2]
[327066531,1715776241726,-151.0,0.0001178,2]
[327066533,1715776241736,-151.0,0.0001178,2]
[327066535,1715776241747,-500.0,0.0001178,2]
[327066537,1715776241756,-151.0,0.0001178,2]
[327066539,1715776241767,-857.675246,0.0001178,2]
[327066541,1715776241777,-151.0,0.0001178,2]
[327066543,1715776241787,-857.675246,0.0001178,2]
[327066545,1715776241796,-500.0,0.0001178,2]
[327066547,1715776241805,-151.0,0.0001178,2]
[327066549,1715776241815,-500.0,0.0001178,2]
[327066551,1715776241825,-151.0,0.0001178,2]
[327066553,1715776241835,-566.78,0.0001178,2]
[327066555,1715776241844,-240.313274,0.0001178,2]
[327066557,1715776241854,-500.0,0.0001178,2]
[327066559,1715776241864,-212.09,0.0001178,2]
[327066560,1715776241873,-500.0,0.0001178,2]
[327066561,1715776241883,-500.0,0.0001178,2]
[327066562,1715776241892,-500.0,0.0001178,2]
[327066563,1715776241902,-738.08703,0.0001178,2]
[327066564,1715776241912,-500.0,0.0001178,2]
[327066565,1715776241925,-500.0,0.0001178,2]
[327066566,1715776241935,-738.08703,0.0001178,2]
[327066567,1715776241944,-151.0,0.0001178,2]
[327066568,1715776241959,-500.0,0.0001178,2]
[327066569,1715776241968,-500.0,0.0001178,2]
[327066570,1715776241977,-151.0,0.0001178,2]
[327066571,1715776241986,-174.76121096,0.0001178,2]
[327066572,1715776242006,-325.23878904,0.0001178,2]
[327066573,1715776242016,-500.0,0.0001178,2]
[327066574,1715776242028,-154.91889,0.0001178,2]
[327066575,1715776242038,-151.0,0.0001178,2]
[327066576,1715776242049,-379.49,0.0001178,2]
[327066578,1715776242059,-500.0,0.0001178,2]
[327066580,1715776242068,-500.0,0.0001178,2]
[327066582,1715776242078,-500.0,0.0001178,2]
[327066584,1715776242088,-211.814947,0.0001178,2]
[327066586,1715776242097,-500.0,0.0001178,2]
[327066588,1715776242107,-476.22,0.0001178,2]
[327066589,1715776242117,-154.91889,0.0001178,2]
[327066590,1715776242127,-500.0,0.0001178,2]
[327066591,1715776242136,-293.23,0.0001178,2]
[327066592,1715776242146,-151.0,0.0001178,2]
[327066593,1715776242155,-175.38396,0.0001178,2]
[327066594,1715776242166,-500.0,0.0001178,2]
[327066595,1715776242176,-500.0,0.0001178,2]
[327066596,1715776242186,-500.0,0.0001178,2]
[327066597,1715776242195,-500.0,0.0001178,2]
[327066598,1715776242211,-500.0,0.0001178,2]
[327066599,1715776242220,-449.35,0.0001178,2]
[327066600,1715776242230,-500.0,0.0001178,2]
[327066601,1715776242239,-151.0,0.0001178,2]
[327066602,1715776242249,-151.0,0.0001178,2]
[327066603,1715776242259,-697.78,0.0001178,2]
[327066604,1715776242269,-697.78,0.0001178,2]
[327066605,1715776242278,-500.0,0.0001178,2]
[327066606,1715776242288,-546.90037564,0.0001178,2]
[327066607,1715776242298,-500.0,0.0001178,2]
[327066608,1715776242308,-500.0,0.0001178,2]
[327066609,1715776242319,-500.0,0.0001178,2]
[327066610,1715776242329,-500.0,0.0001178,2]
[327066611,1715776242339,-500.0,0.0001178,2]
[327066612,1715776242348,-2381.75,0.0001178,2]
[327066613,1715776242358,-500.0,0.0001178,2]
[327066614,1715776242367,-151.0,0.0001178,2]
[327066615,1715776242377,-500.0,0.0001178,2]
[327066616,1715776242387,-500.0,0.0001178,2]
[327066617,1715776242396,-500.0,0.0001178,2]
[327066618,1715776242406,-500.0,0.0001178,2]
[327066619,1715776242415,-323.11961052,0.0001178,2]
[327066620,1715776242424,-335.35,0.0001178,2]
[327066621,1715776242434,-151.0,0.0001178,2]
[327066622,1715776242444,-500.0,0.0001178,2]
[327066623,1715776242459,-500.0,0.0001178,2]
[327066624,1715776242468,-500.0,0.0001178,2]
[327066625,1715776242477,-500.0,0.0001178,2]
[327066626,1715776242486,-520.99813039,0.0001178,2]
[327066627,1715776242495,-500.0,0.0001178,2]
[327066628,1715776242505,-151.0,0.0001178,2]
[327066629,1715776242514,-638.07696289,0.0001178,2]
[327066630,1715776242523,-500.0,0.0001178,2]
[327066631,1715776242532,-500.0,0.0001178,2]
[327066632,1715776242540,-500.0,0.0001178,2]
[327066633,1715776242550,-151.0,0.0001178,2]
[327066634,1715776242559,-523.4933168,0.0001178,2]
[327066635,1715776242568,-500.0,0.0001178,2]
[327066636,1715776242577,-500.0,0.0001178,2]
[327066637,1715776242588,-211.91209167,0.0001178,2]
[327066638,1715776242599,-500.0,0.0001178,2]
[327066639,1715776242608,-219.597814,0.0001178,2]
[327066640,1715776242617,-500.0,0.0001178,2]
[327066641,1715776242627,-500.0,0.0001178,2]
[327066642,1715776242637,-284.09,0.0001178,2]
[327066643,1715776242646,-383.19089442,0.0001178,2]
[327066644,1715776242656,-500.0,0.0001178,2]
[327066645,1715776242666,-500.0,0.0001178,2]
[327066646,1715776242676,-151.0,0.0001178,2]
[327066647,1715776242686,-500.0,0.0001178,2]
[327066649,1715776242695,-530.48916228,0.0001178,2]
[327066651,1715776242711,-500.0,0.0001178,2]
[327066655,1715776242723,-500.0,0.0001178,2]
[327066659,1715776242733,-500.0,0.0001178,2]
[327066663,1715776242742,-500.0,0.0001178,2]
[327066666,1715776242752,-500.0,0.0001178,2]
[327066668,1715776242767,-520.78335385,0.0001178,2]
[327066672,1715776242777,-500.0,0.0001178,2]
[327066676,1715776242787,-166.14,0.0001178,2]
[327066679,1715776242796,-500.0,0.0001178,2]
[327066682,1715776242807,-500.0,0.0001178,2]
[327066684,1715776242816,-500.0,0.0001178,2]
[327066687,1715776242826,-500.0,0.0001178,2]
[327066692,1715776242837,-524.45,0.0001178,2]
[327066695,1715776242846,-500.0,0.0001178,2]
[327066697,1715776242857,-185.01,0.0001178,2]
[327066698,1715776242867,-500.0,0.0001178,2]
[327066699,1715776242877,-500.0,0.0001178,2]
[327066700,1715776242887,-549.66,0.0001178,2]
[327066701,1715776242896,-538.56,0.0001178,2]
[327066702,1715776242907,-500.0,0.0001178,2]
[327066703,1715776242917,-500.0,0.0001178,2]
[327066704,1715776242926,-500.0,0.0001178,2]
[327066705,1715776242938,-500.0,0.0001178,2]
[327066706,1715776242947,-500.0,0.0001178,2]
[327066707,1715776242963,-500.0,0.0001178,2]
[327066708,1715776242972,-500.0,0.0001178,2]
[327066709,1715776242981,-601.15,0.0001178,2]
[327066710,1715776242992,-601.15,0.0001178,2]
[327066711,1715776243001,-536.26,0.0001178,2]
[327066712,1715776243011,-500.0,0.0001178,2]
[327066713,1715776243021,-324.64,0.0001178,2]
[327066714,1715776243031,-279.16669291,0.0001178,2]
[327066715,1715776243042,-484.09600169,0.0001178,2]
[327066716,1715776243052,-500.0,0.0001178,2]
[327066717,1715776243061,-500.0,0.0001178,2]
[327066718,1715776243071,-500.0,0.0001178,2]
[327066719,1715776243081,-500.0,0.0001178,2]
[327066720,1715776243092,-286.53842713,0.0001178,2]
[327066721,1715776243102,-2827.179098,0.0001178,2]
[327066722,1715776243112,-500.0,0.0001178,2]
[327066723,1715776243121,-500.0,0.0001178,2]
[327066724,1715776243131,-151.0,0.0001178,2]
[327066725,1715776243140,-500.0,0.0001178,2]
[327066726,1715776243150,-500.0,0.0001178,2]
[327066727,1715776243160,-2827.179098,0.0001178,2]
[327066728,1715776243170,-494.65842,0.0001178,2]
[327066729,1715776243179,-500.0,0.0001178,2]
[327066730,1715776243188,-500.0,0.0001178,2]
[327066731,1715776243198,-500.0,0.0001178,2]
[327066732,1715776243214,-500.0,0.0001178,2]
[327066733,1715776243223,-494.65842,0.0001178,2]
[327066734,1715776243233,-500.0,0.0001178,2]
[327066735,1715776243242,-500.0,0.0001178,2]
[327066736,1715776243251,-500.0,0.0001178,2]
[327066737,1715776243262,-161.933908,0.0001178,2]
[327066738,1715776243271,-174.48047625,0.0001178,2]
[327066739,1715776243280,-500.0,0.0001178,2]
[327066740,1715776243289,-500.0,0.0001178,2]
[327066741,1715776243298,-500.0,0.0001178,2]
[327066742,1715776243307,-500.0,0.0001178,2]
[327066743,1715776243317,-500.0,0.0001178,2]
[327066744,1715776243326,-500.0,0.0001178,2]
[327066745,1715776243335,-500.0,0.0001178,2]
[327066746,1715776243345,-500.0,0.0001178,2]
[327066747,1715776243354,-500.0,0.0001178,2]
[327066748,1715776243364,-525.49470221,0.0001178,2]
[327066749,1715776243373,-500.0,0.0001178,2]
[327066750,1715776243383,-500.0,0.0001178,2]
[327066751,1715776243392,-500.0,0.0001178,2]
[327066752,1715776243401,-500.0,0.0001178,2]
[327066753,1715776243410,-500.0,0.0001178,2]
[327066754,1715776243420,-640.04,0.0001178,2]
[327066755,1715776243430,-548.00387456,0.0001178,2]
[327066756,1715776243439,-299.013828,0.0001178,2]
[327066757,1715776243450,-875.47,0.0001178,2]
[327066758,1715776243467,-875.47,0.0001178,2]
[327066759,1715776243477,-500.0,0.0001178,2]
[327066760,1715776243486,-500.0,0.0001178,2]
[327066770,1715776243663,-500.0,0.0001178,2]
[327066772,1715776243674,-500.0,0.0001178,2]
[327066774,1715776243683,-500.0,0.0001178,2]
[327066776,1715776243693,-500.0,0.0001178,2]
[327066778,1715776243709,-500.0,0.0001178,2]
[327066780,1715776243721,-500.0,0.0001178,2]
[327066782,1715776243731,-500.0,0.0001178,2]
[327066784,1715776243740,-299.013828,0.0001178,2]
[327066786,1715776243751,-500.0,0.0001178,2]
[327066788,1715776243766,-151.0,0.0001178,2]
[327066790,1715776243776,-500.0,0.0001178,2]
[327066792,1715776243786,-500.0,0.0001178,2]
[327066794,1715776243795,-500.0,0.0001178,2]
[327066796,1715776243806,-500.0,0.0001178,2]
[327066798,1715776243815,-500.0,0.0001178,2]
[327066800,1715776243826,-500.0,0.0001178,2]
[327066802,1715776243837,-512.96,0.0001178,2]
[327066804,1715776243847,-500.0,0.0001178,2]
[327066806,1715776243856,-512.96,0.0001178,2]
[327066808,1715776243866,-500.0,0.0001178,2]
[327066811,1715776243877,-154.416085,0.0001178,2]
[327066813,1715776243886,-500.0,0.0001178,2]
[327066814,1715776243896,-151.0,0.0001178,2]
[327066816,1715776243905,-729.71,0.0001178,2]
[327066818,1715776243915,-729.71,0.0001178,2]
[327066820,1715776243924,-500.0,0.0001178,2]
[327066822,1715776243933,-151.0,0.0001178,2]
[327066824,1715776243943,-500.0,0.0001178,2]
[327066826,1715776243957,-500.0,0.0001178,2]
[327066828,1715776243968,-500.0,0.0001178,2]
[327066830,1715776243977,-500.0,0.0001178,2]
[327066832,1715776243987,-500.0,0.0001178,2]
[327066834,1715776243998,-500.0,0.0001178,2]
[327066836,1715776244008,-1590.57,0.0001178,2]
[327066838,1715776244017,-1590.57,0.0001178,2]
[327066840,1715776244027,-377.28,0.0001178,2]
[327066842,1715776244037,-500.0,0.0001178,2]
[327066844,1715776244046,-521.05883636,0.0001178,2]
[327066845,1715776244056,-151.0,0.0001178,2]
[327066848,1715776244066,-500.0,0.0001178,2]
[327066849,1715776244076,-500.0,0.0001178,2]
[327066851,1715776244086,-500.0,0.0001178,2]
[327066853,1715776244096,-529.0409197,0.0001178,2]
[327066855,1715776244106,-212.90277978,0.0001178,2]
[327066858,1715776244122,-287.09722022,0.0001178,2]
[327066860,1715776244131,-500.0,0.0001178,2]
[327066862,1715776244141,-500.0,0.0001178,2]
[327066864,1715776244150,-200.024478,0.0001178,2]
[327066866,1715776244160,-524.73014031,0.0001178,2]
[327066867,1715776244170,-522.8298099,0.0001178,2]
[327066868,1715776244180,-500.0,0.0001178,2]
[327066869,1715776244190,-4163.77,0.0001178,2]
[327066870,1715776244199,-500.0,0.0001178,2]
[327066871,1715776244215,-500.0,0.0001178,2]
[327066872,1715776244224,-180.82,0.0001178,2]
[327066873,1715776244233,-155.051742,0.0001178,2]
[327066874,1715776244243,-313.42,0.0001178,2]
[327066875,1715776244252,-523.89328155,0.0001178,2]
[327066876,1715776244261,-151.0,0.0001178,2]
[327066877,1715776244270,-151.0,0.0001178,2]
[327066878,1715776244279,-281.97,0.0001178,2]
[327066879,1715776244288,-318.689831,0.0001178,2]
[327066880,1715776244298,-1104.16,0.0001178,2]
[327066881,1715776244307,-524.71,0.0001178,2]
[327066882,1715776244317,-1104.16,0.0001178,2]
[327066883,1715776244327,-510.08,0.0001178,2]
[327066884,1715776244337,-500.0,0.0001178,2]
[327066885,1715776244346,-500.0,0.0001178,2]
[327066886,1715776244356,-500.0,0.0001178,2]
[327066887,1715776244366,-318.689831,0.0001178,2]
[327066888,1715776244376,-500.0,0.0001178,2]